fUST/lending_fUST_20240715
["ID","MTS","AMOUNT","RATE_DAILY","PERIOD"]
[332160540,1720995050186,-916.1,0.00024657,2]
[332160541,1720995050194,-500.0,0.00024657,2]
[332160542,1720995050204,-916.1,0.00024657,2]
[332160543,1720995050215,-500.0,0.00024657,2]
[332160544,1720995050225,-916.1,0.00024657,2]
[332160545,1720995050235,-916.1,0.00024657,2]
[332160546,1720995050245,-916.1,0.00024657,2]
[332160547,1720995050255,-500.0,0.00024657,2]
[332160548,1720995050381,-916.1,0.00024657,2]
[332160549,1720995050390,-916.1,0.00024657,2]
[332160550,1720995050400,-500.0,0.00024657,2]
[332160551,1720995050409,-916.1,0.00024657,2]
[332160552,1720995050419,-916.1,0.00024657,2]
[332160553,1720995050428,-916.1,0.00024657,2]
[332160554,1720995050437,-916.1,0.00024657,2]
[332160555,1720995050447,-517.8642405,0.00024657,2]
[332160556,1720995050456,-500.0,0.00024657,2]
[332160557,1720995050467,-916.1,0.00024657,2]
[332160558,1720995050478,-804.31,0.00024657,4]
[332160559,1720995050488,-916.1,0.00024657,2]
[332160560,1720995050499,-500.0,0.00024657,2]
[332160561,1720995050510,-500.0,0.00024657,2]
[332160562,1720995050519,-916.1,0.00024657,2]
[332160563,1720995050528,-916.1,0.00024657,2]
[332160564,1720995050539,-500.0,0.00024657,2]
[332160565,1720995050551,-916.1,0.00024657,2]
[332160566,1720995050560,-916.1,0.00024657,2]
[332160567,1720995050571,-916.1,0.00024657,2]
[332160568,1720995050580,-916.1,0.00024657,2]
[332160569,1720995050589,-916.29713853,0.00024657,2]
[332160570,1720995050601,-500.0,0.00024657,2]
[332160571,1720995050612,-500.0,0.00024657,2]
[332160572,1720995050622,-500.0,0.00024657,2]
[332160573,1720995050631,-500.0,0.00024657,2]
[332160574,1720995050643,-500.0,0.00024657,2]
[332160575,1720995050653,-500.0,0.00024657,2]
[332160576,1720995050663,-500.0,0.00024657,2]
[332160577,1720995050674,-500.0,0.00024657,2]
[332160578,1720995050685,-500.0,0.00024657,2]
[332160579,1720995050696,-500.0,0.00024657,2]
[332160580,1720995050705,-500.0,0.00024657,2]
[332160581,1720995050715,-500.0,0.00024657,2]
[332160582,1720995050726,-500.0,0.00024657,2]
[332160583,1720995050737,-500.0,0.00024657,2]
[332160584,1720995050746,-500.0,0.00024657,2]
[332160585,1720995050755,-500.0,0.00024657,2]
[332160586,1720995050765,-500.0,0.00024657,2]
[332160587,1720995050775,-500.0,0.00024657,2]
[332160588,1720995050785,-500.0,0.00024657,2]
[332160589,1720995050794,-500.0,0.00024657,2]
[332160590,1720995050803,-151.0,0.00024657,7]
[332160591,1720995050814,-500.0,0.00024657,2]
[332160592,1720995050824,-500.0,0.00024657,2]
[332160593,1720995050834,-151.0,0.00024657,7]
[332160594,1720995050843,-500.0,0.00024657,2]
[332160595,1720995050853,-500.0,0.00024657,2]
[332160596,1720995050862,-584.96282238,0.00024657,2]
[332160597,1720995050872,-500.0,0.00024657,2]
[332160598,1720995050884,-500.0,0.00024657,2]
[332160599,1720995050894,-500.0,0.00024657,2]
[332160600,1720995050903,-500.0,0.00024657,2]
[332160601,1720995050913,-500.0,0.00024657,2]
[332160602,1720995050923,-500.0,0.00024657,2]
[332160603,1720995050935,-500.0,0.00024657,2]
[332160604,1720995050948,-500.0,0.00024657,2]
[332160605,1720995050958,-500.0,0.00024657,2]
[332160606,1720995050967,-500.0,0.00024657,2]
[332160607,1720995050977,-500.0,0.00024657,2]
[332160608,1720995050986,-500.0,0.00024657,2]
[332160609,1720995050995,-500.0,0.00024657,2]
[332160610,1720995051004,-500.0,0.00024657,2]
[332160611,1720995051014,-500.0,0.00024657,2]
[332160612,1720995051023,-500.0,0.00024657,2]
[332160613,1720995051033,-500.0,0.00024657,2]
[332160614,1720995051043,-500.0,0.00024657,2]
[332160615,1720995051052,-500.0,0.00024657,2]
[332160616,1720995051061,-500.0,0.00024657,2]
[332160617,1720995051073,-500.0,0.00024657,2]
[332160618,1720995051082,-500.0,0.00024657,2]
[332160619,1720995051092,-500.0,0.00024657,2]
[332160620,1720995051101,-500.0,0.00024657,2]
[332160621,1720995051111,-500.0,0.00024657,2]
[332160622,1720995051120,-500.0,0.00024657,2]
[332160623,1720995051130,-500.0,0.00024657,2]
[332160624,1720995051139,-500.0,0.00024657,2]
[332160625,1720995051148,-500.0,0.00024657,2]
[332160626,1720995051158,-500.0,0.00024657,2]
[332160627,1720995051167,-500.0,0.00024657,2]
[332160628,1720995051177,-154.49395317,0.00024657,2]
[332160629,1720995051187,-500.0,0.00024657,2]
[332160630,1720995051197,-500.0,0.00024657,2]
[332160631,1720995051206,-500.0,0.00024657,2]
[332160632,1720995051216,-500.0,0.00024657,2]
[332160633,1720995051226,-500.0,0.00024657,2]
[332160634,1720995051235,-500.0,0.00024657,2]
[332160635,1720995051244,-500.0,0.00024657,2]
[332160636,1720995051253,-501.19495669,0.00024657,2]
[332160637,1720995051262,-505.84613595,0.00024657,2]
[332160638,1720995051272,-500.0,0.00024657,2]
[332160639,1720995051281,-500.0,0.00024657,2]
[332160640,1720995051295,-500.0,0.00024657,2]
[332160641,1720995051305,-500.0,0.00024657,2]
[332160642,1720995051316,-509.01017724,0.00024657,2]
[332160643,1720995051327,-500.0,0.00024657,2]
[332160644,1720995051337,-500.0,0.00024657,2]
[332160645,1720995051347,-500.0,0.00024657,2]
[332160646,1720995051356,-500.0,0.00024657,2]
[332160647,1720995051367,-508.9443248,0.00024657,2]
[332160648,1720995051377,-500.0,0.00024657,2]
[332160649,1720995051386,-500.0,0.00024657,2]
[332160650,1720995051395,-506.25715538,0.00024657,2]
[332160651,1720995051404,-151.0,0.00024657,7]
[332160652,1720995051414,-151.0,0.00024657,7]
[332160653,1720995051423,-500.0,0.00024658,2]
[332160654,1720995051432,-500.0,0.00024658,2]
[332160655,1720995051442,-500.0,0.00024658,2]
[332160656,1720995051452,-500.0,0.00024658,2]
[332160657,1720995051461,-338.13351903,0.00024658,2]
[332160658,1720995051470,-500.0,0.00024658,2]
[332160659,1720995051480,-500.0,0.00024658,2]
[332160660,1720995051489,-500.0,0.00024658,2]
[332160661,1720995051499,-500.0,0.00024658,2]
[332160662,1720995051508,-200.0,0.00024658,2]
[332160663,1720995051517,-500.0,0.00024658,2]
[332160664,1720995051527,-302.36509981,0.000249,2]
[332160665,1720995051536,-500.0,0.00024931,2]
[332160666,1720995051545,-500.0,0.00024931,2]
[332160667,1720995051554,-502.81125012,0.00024931,2]
[332160668,1720995051565,-500.0,0.00024931,2]
[332160669,1720995051574,-510.41566995,0.00024931,2]
[332160670,1720995051583,-500.0,0.00024931,2]
[332160671,1720995051593,-500.0,0.00024931,2]
[332160672,1720995051602,-500.0,0.00024931,2]
[332160673,1720995051613,-500.0,0.00024931,2]
[332160674,1720995051623,-500.0,0.00024931,2]
[332160675,1720995051632,-500.0,0.00024931,2]
[332160676,1720995051642,-265.16546676,0.00024931,2]
[332160677,1720995051651,-9.55027687,0.00024931,2]
[332160678,1720995051723,-301.23562256,0.00020236,2]
[332160679,1720995051734,-224.84510619,0.00022277,2]
[332160680,1720995051746,-76.39051637,0.00022277,2]
[332160681,1720995051755,-500.0,0.00024657,2]
[332160682,1720995051765,-490.44972313,0.00024931,2]
[332160683,1720995051775,-500.0,0.00024931,2]
[332160684,1720995051784,-500.0,0.00024931,2]
[332160685,1720995051793,-541.39600267,0.00024931,2]
[332160686,1720995051803,-500.0,0.00024931,2]
[332160687,1720995051813,-500.0,0.00024931,2]
[332160688,1720995051826,-500.0,0.00024931,2]
[332160689,1720995051837,-500.0,0.00024931,2]
[332160690,1720995051846,-500.0,0.00024931,2]
[332160691,1720995051855,-500.0,0.00024931,2]
[332160692,1720995051865,-500.0,0.00024931,2]
[332160693,1720995051874,-500.0,0.00024931,2]
[332160694,1720995051883,-517.54873625,0.00024931,2]
[332160695,1720995051892,-500.0,0.00024931,2]
[332160696,1720995051902,-500.0,0.00024931,2]
[332160697,1720995051911,-500.0,0.00024931,2]
[332160698,1720995051921,-500.0,0.00024931,2]
[332160699,1720995051931,-529.09138364,0.00024931,2]
[332160700,1720995051940,-500.0,0.00024931,2]
[332160701,1720995051949,-500.0,0.00024931,2]
[332160702,1720995051958,-500.0,0.00024931,2]
[332160703,1720995051968,-526.24507255,0.00024931,2]
[332160704,1720995051977,-500.0,0.00024931,2]
[332160705,1720995051986,-500.0,0.00024931,2]
[332160706,1720995051995,-500.0,0.00024931,2]
[332160707,1720995052005,-500.0,0.00024931,2]
[332160708,1720995052014,-500.0,0.00024931,2]
[332160709,1720995052023,-500.0,0.00024931,2]
[332160710,1720995052033,-500.0,0.00024931,2]
[332160711,1720995052041,-500.0,0.00024931,2]
[332160712,1720995052050,-500.0,0.00024931,2]
[332160713,1720995052059,-500.0,0.00024931,2]
[332160714,1720995052070,-500.0,0.00024931,2]
[332160715,1720995052079,-500.0,0.00024931,2]
[332160716,1720995052088,-500.0,0.00024931,2]
[332160717,1720995052097,-469.03692436,0.00024931,2]
[332160718,1720995052107,-500.0,0.00024931,2]
[332160719,1720995052116,-500.0,0.00024931,2]
[332160720,1720995052126,-500.0,0.00024931,2]
[332160721,1720995052135,-245.7935374,0.00024931,2]
[332160722,1720995052145,-503.40248263,0.00024931,2]
[332160723,1720995052155,-500.0,0.00024931,2]
[332160724,1720995052164,-500.0,0.00024931,2]
[332160725,1720995052173,-500.0,0.00024931,2]
[332160726,1720995052184,-500.0,0.00024931,2]
[332160727,1720995052194,-500.0,0.00024931,2]
[332160728,1720995052203,-500.0,0.00024931,2]
[332160729,1720995052211,-500.0,0.00024931,2]
[332160730,1720995052220,-500.0,0.00024931,2]
[332160731,1720995052230,-500.0,0.00024931,2]
[332160732,1720995052239,-512.53891412,0.00024931,2]
[332160733,1720995052249,-518.36472509,0.00024931,2]
[332160734,1720995052259,-517.01983143,0.00024931,2]
[332160735,1720995052270,-500.0,0.00024931,2]
[332160736,1720995052281,-500.0,0.00024931,2]
[332160737,1720995052294,-500.0,0.00024931,2]
[332160738,1720995052305,-500.0,0.00024931,2]
[332160739,1720995052317,-500.0,0.00024931,2]
[332160740,1720995052327,-500.0,0.00024931,2]
[332160741,1720995052338,-506.5496359,0.00024931,2]
[332160742,1720995052349,-500.0,0.00024931,2]
[332160743,1720995052358,-500.0,0.00024931,2]
[332160744,1720995052369,-515.39709604,0.00024931,2]
[332160745,1720995052378,-151.0,0.00024931,7]
[332160746,1720995052388,-500.0,0.00024931,2]
[332160747,1720995052397,-500.0,0.00024931,2]
[332160748,1720995052406,-549.62161894,0.00024931,2]
[332160749,1720995052415,-502.52945941,0.00024931,2]
[332160750,1720995052424,-500.0,0.00024931,2]
[332160751,1720995052434,-319.48814599,0.00024931,2]
[332160752,1720995052443,-500.0,0.00024931,2]
[332160753,1720995052452,-500.0,0.00024931,2]
[332160754,1720995052461,-500.0,0.00024931,2]
[332160755,1720995052471,-500.0,0.00024931,2]
[332160756,1720995052482,-500.0,0.00024931,2]
[332160757,1720995052492,-500.0,0.00024931,2]
[332160758,1720995052500,-500.0,0.00024931,2]
[332160759,1720995052509,-500.0,0.00024931,2]
[332160760,1720995052519,-500.0,0.00024931,2]
[332160761,1720995052528,-500.0,0.00024931,2]
[332160762,1720995052538,-500.0,0.00024931,2]
[332160763,1720995052547,-505.50530957,0.00024931,2]
[332160764,1720995052557,-371.11293632,0.00024931,2]
[332160765,1720995052575,-130.23886502,0.00024931,2]
[332160766,1720995052585,-500.0,0.00024931,2]
[332160767,1720995052594,-500.0,0.00024931,2]
[332160768,1720995052603,-297.51481992,0.00024931,2]
[332160769,1720995052612,-500.0,0.00024931,2]
[332160770,1720995052621,-500.0,0.00024931,2]
[332160771,1720995052630,-500.0,0.00024931,2]
[332160772,1720995052640,-500.0,0.00024931,2]
[332160773,1720995052649,-500.0,0.00024931,2]
[332160774,1720995052658,-500.0,0.00024931,2]
[332160775,1720995052668,-500.0,0.00024931,2]
[332160776,1720995052677,-500.0,0.00024931,2]
[332160777,1720995052686,-602.97,0.00024931,2]
[332160778,1720995052695,-500.0,0.00024931,2]
[332160779,1720995052704,-500.0,0.00024931,2]
[332160780,1720995052714,-500.0,0.00024931,2]
[332160781,1720995052723,-500.0,0.00024931,2]
[332160782,1720995052732,-500.0,0.00024931,2]
[332160783,1720995052742,-500.0,0.00024931,2]
[332160784,1720995052751,-500.0,0.00024931,2]
[332160785,1720995052760,-487.83995183,0.00024931,2]
[332160786,1720995052773,-12.16004817,0.00024931,2]
[332160787,1720995052782,-500.0,0.00024931,2]
[332160788,1720995052792,-60.1155835,0.00024931,2]
[332160865,1720995940943,152.19,0.00010959,2]
[332160866,1720995951543,760.98,0.00010959,2]
[332160869,1720996015168,470.38079839,0.00013283,2]
[332160873,1720996047404,156.33744284,0.00013283,2]
[332160890,1720996167978,24900.0,0.00015208,2]
[332160891,1720996168455,249.64752071,0.00014999,2]
[332160893,1720996176895,-365.33119004,0.00016054,2]
[332160894,1720996176942,-191.1741989,0.00016054,2]
[332160922,1720996233109,-7747.51777497,0.00016155,2]
[332160923,1720996233178,-2349.33745249,0.00016155,2]
[332161318,1720996238352,-2094.57863766,0.00016155,2]
[332161320,1720996238364,-541.88881344,0.00016155,2]
[332161322,1720996238377,-3569.33146816,0.00016155,2]
[332161324,1720996238386,-300.0,0.00016242,2]
[332161326,1720996238396,-300.0,0.00016242,2]
[332161328,1720996238405,-254.40745138,0.00016242,2]
[332161330,1720996238414,-228.58836225,0.00016242,2]
[332161332,1720996238423,-500.0,0.00016242,2]
[332161334,1720996238433,-500.0,0.00016242,2]
[332161336,1720996238442,-500.0,0.00016242,2]
[332161338,1720996238451,-500.0,0.00016242,2]
[332161340,1720996238461,-610.95143644,0.00016242,2]
[332161342,1720996238470,-500.0,0.00016242,2]
[332161345,1720996238480,-205.79589311,0.00016242,2]
[332161347,1720996238489,-346.82681241,0.00016242,2]
[332161349,1720996238499,-172.31658452,0.00016244,2]
[332161351,1720996238508,-263.4723365,0.00016244,2]
[332161353,1720996238518,-463.30255594,0.00016244,2]
[332161355,1720996238528,-165.9762848,0.00016244,2]
[332161357,1720996238537,-500.0,0.00016244,2]
[332161359,1720996238546,-500.0,0.00016244,2]
[332161361,1720996238556,-500.0,0.00016244,2]
[332161363,1720996238567,-500.0,0.00016244,2]
[332161365,1720996238577,-500.0,0.00016244,2]
[332161367,1720996238589,-500.0,0.00016244,2]
[332161369,1720996238598,-500.0,0.00016244,2]
[332161371,1720996238608,-500.0,0.00016244,2]
[332161373,1720996238617,-500.0,0.00016244,2]
[332161375,1720996238626,-500.0,0.00016244,2]
[332161377,1720996238636,-276.23142922,0.00016244,2]
[332161379,1720996238645,-500.0,0.00016244,2]
[332161381,1720996238654,-424.40937503,0.00016244,2]
[332161383,1720996238663,-500.0,0.00016244,2]
[332161385,1720996238673,-500.0,0.00016244,2]
[332161387,1720996238682,-300.0,0.00016244,2]
[332161389,1720996238691,-500.0,0.00016244,2]
[332161391,1720996238700,-390.53787692,0.00016244,2]
[332161393,1720996238710,-500.0,0.00016244,2]
[332161395,1720996238719,-500.0,0.00016244,2]
[332161397,1720996238728,-295.34037256,0.00016244,2]
[332161399,1720996238738,-500.0,0.00016244,2]
[332161401,1720996238746,-289.3656713,0.00016244,2]
[332161403,1720996238755,-199.19215348,0.00016244,2]
[332161405,1720996238765,-488.55714126,0.00016244,2]
[332161407,1720996238774,-133075.852889,0.00016245,2]
[332161409,1720996238783,-34969.80169059,0.00016255,2]
[332161411,1720996238793,-21266.34724239,0.00016255,2]
[332161413,1720996238803,-25892.23883909,0.00016255,2]
[332161415,1720996238813,-160.949279,0.00016473,2]
[332161417,1720996238824,-160.949279,0.00017332,2]
[332161419,1720996238834,-133075.852889,0.00017675,2]
[332161421,1720996238847,-420.0,0.00017754,2]
[332161424,1720996238862,-420.0,0.00017866,2]
[332161426,1720996238872,-16302.6541467,0.00017916,2]
[332161428,1720996238881,-133075.852889,0.0001799,2]
[332161429,1720996238891,-63962.36481418,0.00018,2]
[332161432,1720996238901,-42279.12347767,0.00018899,2]
[332161434,1720996238911,-265.87855121,0.000189,2]
[332161436,1720996238920,-250.0,0.00019041,2]
[332161438,1720996238930,-161.957154,0.00019178,2]
[332161440,1720996238940,-587.0,0.00019653,2]
[332161442,1720996238951,-16302.6541467,0.00019678,2]
[332161444,1720996238960,-225.9011813,0.0002,2]
[332161446,1720996238969,-243.8129477,0.0002,2]
[332161448,1720996238978,-150.112233,0.0002,3]
[332161450,1720996238988,-395.03539679,0.000203,2]
[332161452,1720996238997,-150.112233,0.000205,4]
[332161453,1720996239007,-154.68290005,0.00020543,2]
[332161455,1720996239016,-150.112233,0.000209,5]
[332161457,1720996239026,-257.701341,0.00021,2]
[332161459,1720996239036,-5801.66895327,0.00021,2]
[332161462,1720996239050,-4311.8007035,0.00021,2]
[332161464,1720996239060,-133075.852889,0.00021086,3]
[332161466,1720996239071,-589.146217,0.00021096,2]
[332161468,1720996239081,-150.112233,0.000214,2]
[332161470,1720996239090,-16302.6541467,0.00021439,2]
[332161472,1720996239099,-823.0,0.00021618,2]
[332161474,1720996239109,-150.112233,0.000219,3]
[332161476,1720996239118,-154.68290005,0.00021917,2]
[332161478,1720996239128,-166.666666,0.00021918,2]
[332161480,1720996239137,-150.112233,0.000223,3]
[332161482,1720996239147,-150.112233,0.000228,3]
[332161484,1720996239156,-238.82968837,0.00023,2]
[332161487,1720996239165,-10100.5733205,0.00023,2]
[332161489,1720996239175,-16302.6541467,0.000232,2]
[332161491,1720996239184,-150.112233,0.000233,2]
[332161493,1720996239193,-150.112233,0.000237,4]
[332161495,1720996239203,-1152.0,0.0002378,2]
[332161497,1720996239212,-265.87855121,0.000239,2]
[332161499,1720996239222,-1066.54542754,0.00023966,2]
[332161501,1720996239231,-4809.69852006,0.00024138,2]
[332161503,1720996239240,-150.112233,0.000242,4]
[332161505,1720996239250,-151.0,0.0002422,7]
[332161507,1720996239259,-151.0,0.0002422,7]
[332161509,1720996239268,-180.248644,0.0002422,7]
[332161511,1720996239278,-180.248644,0.0002422,7]
[332161513,1720996239287,-151.0,0.0002422,7]
[332161515,1720996239296,-151.0,0.0002422,7]
[332161517,1720996239305,-1000.0,0.0002439,2]
[332161519,1720996239316,-1000.0,0.00024427,2]
[332161521,1720996239326,-217.1,0.00024477,2]
[332161523,1720996239335,-166.666666,0.00024482,2]
[332161525,1720996239345,-1000.0,0.0002449,2]
[332161527,1720996239354,-1000.0,0.00024506,2]
[332161529,1720996239363,-1000.0,0.00024508,2]
[332161531,1720996239372,-4809.69852006,0.00024518,2]
[332161533,1720996239382,-736.70531873,0.00024532,2]
[332161535,1720996239391,-1000.0,0.00024539,2]
[332161537,1720996239400,-444.99965238,0.00024547,2]
[332161539,1720996239410,-1000.0,0.00024591,2]
[332161541,1720996239419,-150.112233,0.000246,5]
[332161543,1720996239429,-1000.0,0.0002461,2]
[332161545,1720996239438,-1000.0,0.00024628,2]
[332161547,1720996239448,-1000.0,0.00024651,2]
[332161549,1720996239457,-500.0,0.00024657,2]
[332161551,1720996239467,-500.0,0.00024657,2]
[332161553,1720996239476,-500.0,0.00024657,2]
[332161555,1720996239485,-500.0,0.00024657,2]
[332161557,1720996239495,-500.0,0.00024657,2]
[332161559,1720996239504,-500.0,0.00024657,2]
[332161561,1720996239513,-500.0,0.00024657,2]
[332161563,1720996239522,-396.68773911,0.00024657,2]
[332161565,1720996239533,-317.17300598,0.00024657,2]
[332161567,1720996239543,-500.0,0.00024657,2]
[332161569,1720996239553,-500.0,0.00024657,2]
[332161571,1720996239562,-500.0,0.00024657,2]
[332161573,1720996239574,-500.0,0.00024657,2]
[332161575,1720996239583,-500.0,0.00024657,2]
[332161577,1720996239593,-500.0,0.00024657,2]
[332161579,1720996239603,-500.0,0.00024657,2]
[332161581,1720996239612,-500.0,0.00024657,2]
[332161583,1720996239621,-500.0,0.00024657,2]
[332161585,1720996239632,-500.0,0.00024657,2]
[332161587,1720996239642,-508.20826552,0.00024657,2]
[332161589,1720996239652,-500.0,0.00024657,2]
[332161591,1720996239661,-500.0,0.00024657,2]
[332161593,1720996239671,-500.0,0.00024657,2]
[332161595,1720996239680,-500.0,0.00024657,2]
[332161597,1720996239689,-500.0,0.00024657,2]
[332161598,1720996239699,-500.0,0.00024657,2]
[332161600,1720996239708,-500.0,0.00024657,2]
[332161602,1720996239719,-500.0,0.00024657,2]
[332161604,1720996239728,-500.0,0.00024657,2]
[332161606,1720996239738,-503.42071233,0.00024657,2]
[332161608,1720996239747,-500.0,0.00024657,2]
[332161610,1720996239756,-500.0,0.00024657,2]
[332161612,1720996239766,-565.07,0.00024657,2]
[332161614,1720996239775,-500.0,0.00024657,2]
[332161616,1720996239784,-500.0,0.00024657,2]
[332161618,1720996239793,-500.0,0.00024657,2]
[332161620,1720996239803,-500.0,0.00024657,2]
[332161622,1720996239812,-500.0,0.00024657,2]
[332161624,1720996239823,-1500.0,0.00024657,2]
[332161626,1720996239832,-500.0,0.00024657,2]
[332161628,1720996239841,-500.0,0.00024657,2]
[332161630,1720996239852,-500.0,0.00024657,2]
[332161632,1720996239862,-500.0,0.00024657,2]
[332161634,1720996239871,-792.23,0.00024657,2]
[332161636,1720996239881,-500.0,0.00024657,2]
[332161638,1720996239890,-500.0,0.00024657,2]
[332161640,1720996239901,-509.17224092,0.00024657,2]
[332161643,1720996239911,-500.0,0.00024657,2]
[332161645,1720996239922,-500.15616576,0.00024657,2]
[332161647,1720996239931,-500.0,0.00024657,2]
[332161649,1720996239941,-500.0,0.00024657,2]
[332161651,1720996239951,-500.0,0.00024657,2]
[332161653,1720996239961,-500.0,0.00024657,2]
[332161655,1720996239970,-503.35804317,0.00024657,2]
[332161657,1720996239980,-475.1696104,0.00024657,2]
[332161659,1720996239989,-500.0,0.00024657,2]
[332161661,1720996239998,-500.0,0.00024657,2]
[332161663,1720996240008,-516.17923866,0.00024657,2]
[332161665,1720996240017,-500.0,0.00024657,2]
[332161667,1720996240027,-500.0,0.00024657,2]
[332161669,1720996240036,-500.0,0.00024657,2]
[332161671,1720996240045,-500.0,0.00024657,2]
[332161673,1720996240055,-500.0,0.00024657,2]
[332161675,1720996240064,-500.0,0.00024657,2]
[332161677,1720996240074,-500.0,0.00024657,2]
[332161679,1720996240084,-500.0,0.00024657,2]
[332161681,1720996240092,-500.0,0.00024657,2]
[332161683,1720996240101,-500.0,0.00024657,2]
[332161684,1720996240110,-200.0,0.00024657,2]
[332161685,1720996240120,-500.0,0.00024657,2]
[332161686,1720996240129,-550.68150547,0.00024657,2]
[332161687,1720996240139,-500.0,0.00024657,2]
[332161688,1720996240148,-500.0,0.00024657,2]
[332161689,1720996240158,-500.0,0.00024657,2]
[332161690,1720996240167,-194.69327526,0.00024657,2]
[332161691,1720996240176,-595.55475756,0.00024657,2]
[332161692,1720996240185,-500.0,0.00024657,2]
[332161693,1720996240195,-500.0,0.00024657,2]
[332161694,1720996240204,-500.0,0.00024657,2]
[332161695,1720996240214,-500.0,0.00024657,2]
[332161696,1720996240223,-500.0,0.00024657,2]
[332161697,1720996240232,-500.0,0.00024657,2]
[332161698,1720996240242,-500.0,0.00024657,2]
[332161699,1720996240251,-500.0,0.00024657,2]
[332161700,1720996240260,-500.0,0.00024657,2]
[332161702,1720996240270,-500.0,0.00024657,2]
[332161704,1720996240279,-500.0,0.00024657,2]
[332161706,1720996240288,-161.6228726,0.00024657,2]
[332161707,1720996240297,-500.0,0.00024657,2]
[332161709,1720996240306,-500.0,0.00024657,2]
[332161710,1720996240317,-500.0,0.00024657,2]
[332161712,1720996240327,-618.13628609,0.00024657,2]
[332161714,1720996240336,-500.0,0.00024657,2]
[332161716,1720996240345,-998.47,0.00024657,2]
[332161718,1720996240355,-500.0,0.00024657,2]
[332161720,1720996240364,-500.0,0.00024657,2]
[332161722,1720996240373,-508.79832032,0.00024657,2]
[332161724,1720996240382,-500.0,0.00024657,2]
[332161726,1720996240392,-500.0,0.00024657,2]
[332161728,1720996240402,-500.0,0.00024657,2]
[332161730,1720996240411,-500.0,0.00024657,2]
[332161732,1720996240420,-500.0,0.00024657,2]
[332161734,1720996240430,-500.0,0.00024657,2]
[332161735,1720996240439,-500.0,0.00024657,2]
[332161738,1720996240448,-500.0,0.00024657,2]
[332161739,1720996240457,-496.83962333,0.00024657,2]
[332161741,1720996240466,-500.0,0.00024657,2]
[332161743,1720996240475,-200.0,0.00024657,7]
[332161745,1720996240485,-500.0,0.00024657,2]
[332161747,1720996240494,-500.0,0.00024657,2]
[332161749,1720996240503,-500.0,0.00024657,2]
[332161751,1720996240512,-500.0,0.00024657,2]
[332161752,1720996240522,-500.0,0.00024657,2]
[332161754,1720996240531,-500.0,0.00024657,2]
[332161756,1720996240540,-500.0,0.00024657,2]
[332161758,1720996240549,-500.0,0.00024657,2]
[332161760,1720996240558,-500.0,0.00024657,2]
[332161762,1720996240568,-500.0,0.00024657,2]
[332161764,1720996240577,-500.0,0.00024657,2]
[332161766,1720996240587,-553.06663052,0.00024657,2]
[332161768,1720996240595,-500.0,0.00024657,2]
[332161770,1720996240604,-500.0,0.00024657,2]
[332161772,1720996240614,-500.0,0.00024657,2]
[332161774,1720996240623,-217.44814093,0.00024657,2]
[332161776,1720996240633,-500.0,0.00024657,2]
[332161778,1720996240643,-500.0,0.00024657,2]
[332161780,1720996240652,-500.0,0.00024657,2]